fUSD/lending_fUSD_20240424
["ID","MTS","AMOUNT","RATE_DAILY","PERIOD"]
[323449284,1713993049630,-5000.0,0.00012432,2]
[323449285,1713993049641,-2500.0,0.00012433,2]
[323449286,1713993049652,-209.85536267,0.00012434,2]
[323449287,1713993049662,-1030.5412573,0.00012434,3]
[323449288,1713993049671,-1382.689,0.00012435,2]
[323449289,1713993049681,-1244.0,0.00012435,2]
[323449290,1713993049690,-1225.0,0.00012435,2]
[323449291,1713993049699,-1267.0,0.00012435,2]
[323449292,1713993049709,-1461.0,0.00012435,2]
[323449293,1713993049719,-1585.59,0.00012444,2]
[323449294,1713993049730,-4630.23,0.00012453,2]
[323449295,1713993049738,-4046.44,0.00012466,2]
[323449296,1713993049748,-5000.0,0.00012468,2]
[323449297,1713993049757,-5000.0,0.00012477,2]
[323449298,1713993049768,-5000.0,0.00012482,2]
[323449299,1713993049778,-10000.0,0.00012491,2]
[323449300,1713993049789,-251.64589912,0.000125,2]
[323449301,1713993049799,-2100.0,0.000125,4]
[323449302,1713993049808,-10000.0,0.000125,2]
[323449303,1713993049818,-169.11011791,0.00012501,2]
[323449304,1713993049828,-302.5848,0.00012502,2]
[323449305,1713993049837,-5000.0,0.00012506,2]
[323449306,1713993049848,-25000.0,0.00012541,2]
[323449307,1713993049857,-10000.0,0.00012572,2]
[323449308,1713993049867,-2600.0,0.000126,4]
[323449309,1713993049876,-429.98,0.000126,2]
[323449310,1713993049885,-2316.88,0.000126,2]
[323449311,1713993049894,-500.0,0.000126,2]
[323449312,1713993049903,-500.0,0.000126,2]
[323449313,1713993049912,-536.56,0.000126,2]
[323449314,1713993049921,-588.0,0.000126,2]
[323449315,1713993049930,-500.0,0.000126,2]
[323449316,1713993049939,-205.5,0.000126,2]
[323449317,1713993049948,-500.0,0.000126,2]
[323449318,1713993049958,-317.0,0.000126,2]
[323449319,1713993049966,-229.38,0.000126,2]
[323449320,1713993049975,-500.0,0.000126,2]
[323449321,1713993049984,-597.76,0.000126,2]
[323449322,1713993049993,-2803.54,0.000126,2]
[323449323,1713993050003,-500.0,0.000126,2]
[323449324,1713993050012,-500.0,0.000126,2]
[323449325,1713993050021,-500.0,0.000126,2]
[323449326,1713993050030,-671.07,0.000126,2]
[323449327,1713993050040,-860.45,0.000126,2]
[323449328,1713993050049,-500.0,0.000126,2]
[323449329,1713993050059,-1249.54,0.000126,2]
[323449330,1713993050068,-8489.62,0.000126,2]
[323449331,1713993050077,-500.0,0.000126,2]
[323449332,1713993050086,-500.0,0.00012601,2]
[323449333,1713993050096,-150.0,0.00012601,2]
[323449334,1713993050105,-500.0,0.00012601,2]
[323449335,1713993050114,-500.0,0.00012601,2]
[323449336,1713993050124,-500.0,0.00012601,2]
[323449337,1713993050133,-500.0,0.00012601,2]
[323449338,1713993050143,-9725.75,0.00012601,2]
[323449339,1713993050152,-500.0,0.00012601,2]
[323449340,1713993050161,-500.0,0.00012601,2]
[323449341,1713993050171,-500.0,0.00012601,2]
[323449342,1713993050180,-500.0,0.00012601,2]
[323449343,1713993050189,-437.44,0.00012601,2]
[323449344,1713993050198,-500.0,0.00012601,2]
[323449345,1713993050207,-1529.17,0.00012601,2]
[323449346,1713993050216,-500.0,0.00012601,2]
[323449347,1713993050225,-500.0,0.00012601,2]
[323449348,1713993050234,-2644.73,0.00012601,2]
[323449349,1713993050244,-500.0,0.00012601,2]
[323449350,1713993050253,-160.37,0.00012601,2]
[323449351,1713993050262,-500.0,0.00012601,2]
[323449352,1713993050272,-500.0,0.00012601,2]
[323449353,1713993050281,-500.0,0.00012601,2]
[323449354,1713993050290,-500.0,0.00012601,2]
[323449355,1713993050299,-500.0,0.00012601,2]
[323449356,1713993050308,-536.02,0.00012601,2]
[323449357,1713993050317,-500.0,0.00012601,2]
[323449358,1713993050326,-500.0,0.00012601,2]
[323449359,1713993050335,-500.0,0.00012601,2]
[323449360,1713993050344,-2931.38,0.00012601,2]
[323449361,1713993050353,-500.0,0.00012601,2]
[323449362,1713993050362,-500.0,0.00012601,2]
[323449363,1713993050372,-3493.05,0.00012601,2]
[323449364,1713993050381,-620.45,0.00012601,2]
[323449365,1713993050390,-37650.41,0.00012601,2]
[323449366,1713993050401,-626.94,0.00012602,2]
[323449367,1713993050411,-2966.77,0.0001261,2]
[323449368,1713993050421,-5000.0,0.00012663,2]
[323449369,1713993050430,-10000.0,0.00012672,2]
[323449370,1713993050439,-5000.0,0.00012682,2]
[323449371,1713993050449,-500.0,0.000127,4]
[323449372,1713993050459,-173.44820364,0.000127,2]
[323449373,1713993050468,-208.75051436,0.000127,2]
[323449374,1713993050479,-5000.0,0.00012747,2]
[323449375,1713993050488,-5000.0,0.00012751,2]
[323449376,1713993050498,-2500.0,0.00012767,2]
[323449377,1713993050507,-5000.0,0.00012773,2]
[323449378,1713993050516,-5000.0,0.00012776,2]
[323449379,1713993050526,-5000.0,0.00012785,2]
[323449380,1713993050535,-214.02042905,0.00012798,2]
[323449381,1713993050544,-1667.16113497,0.00012798,2]
[323449382,1713993050554,-304.30834737,0.00012798,2]
[323449383,1713993050564,-308.20153492,0.00012799,2]
[323449384,1713993050574,-155.0,0.000128,2]
[323449385,1713993050583,-215915.64744748,0.000128,2]
[323449386,1713993050593,-500.0,0.000128,4]
[323449387,1713993050603,-200.01599054,0.000128,2]
[323449388,1713993050612,-5000.0,0.00012842,2]
[323449389,1713993050622,-1538.23,0.00012863,2]
[323449390,1713993050632,-158.48901117,0.00012869,2]
[323449391,1713993050646,-931.30766592,0.0001287,2]
[323449392,1713993050655,-2316.88,0.00012874,2]
[323449393,1713993050665,-500.0,0.00012874,2]
[323449394,1713993050675,-442.13,0.00012874,2]
[323449395,1713993050684,-536.56,0.00012874,2]
[323449396,1713993050694,-420.61155699,0.00012874,2]
[323449397,1713993050703,-500.0,0.00012874,2]
[323449398,1713993050713,-500.0,0.00012874,2]
[323449399,1713993050723,-2803.54,0.00012874,2]
[323449400,1713993050732,-500.0,0.00012874,2]
[323449401,1713993050743,-500.0,0.00012874,2]
[323449402,1713993050752,-500.0,0.00012874,2]
[323449403,1713993050763,-671.07,0.00012874,2]
[323449404,1713993050772,-860.45,0.00012874,2]
[323449405,1713993050781,-500.0,0.00012874,2]
[323449406,1713993050791,-1249.54,0.00012874,2]
[323449407,1713993050800,-8489.62,0.00012874,2]
[323449408,1713993050810,-500.0,0.00012874,2]
[323449409,1713993050818,-500.0,0.00012875,2]
[323449410,1713993050827,-150.0,0.00012875,2]
[323449411,1713993050837,-500.0,0.00012875,2]
[323449412,1713993050846,-500.0,0.00012875,2]
[323449413,1713993050854,-500.0,0.00012875,2]
[323449414,1713993050864,-9725.75,0.00012875,2]
[323449415,1713993050872,-500.0,0.00012875,2]
[323449416,1713993050882,-634.66,0.00012875,2]
[323449417,1713993050892,-500.0,0.00012875,2]
[323449418,1713993050902,-500.0,0.00012875,2]
[323449419,1713993050912,-500.0,0.00012875,2]
[323449420,1713993050921,-1529.17,0.00012875,2]
[323449421,1713993050930,-500.0,0.00012875,2]
[323449422,1713993050939,-533.41,0.00012875,2]
[323449423,1713993050948,-2644.73,0.00012875,2]
[323449424,1713993050957,-284.34,0.00012875,2]
[323449425,1713993050966,-500.0,0.00012875,2]
[323449426,1713993050975,-500.0,0.00012875,2]
[323449427,1713993050984,-500.0,0.00012875,2]
[323449428,1713993050993,-500.0,0.00012875,2]
[323449429,1713993051003,-500.0,0.00012875,2]
[323449430,1713993051012,-500.0,0.00012875,2]
[323449431,1713993051022,-500.0,0.00012875,2]
[323449432,1713993051031,-500.0,0.00012875,2]
[323449433,1713993051040,-2931.38,0.00012875,2]
[323449434,1713993051050,-500.0,0.00012875,2]
[323449435,1713993051060,-500.0,0.00012875,2]
[323449436,1713993051070,-3493.05,0.00012875,2]
[323449437,1713993051079,-37650.41,0.00012875,2]
[323449438,1713993051089,-626.94,0.00012876,2]
[323449439,1713993051099,-2500.0,0.00012884,2]
[323449440,1713993051108,-365.97088217,0.000129,2]
[323449441,1713993051118,-2498.71570487,0.000129,2]
[323449442,1713993051127,-500.0,0.000129,4]
[323449443,1713993051137,-15880.0044,0.000129,2]
[323449444,1713993051147,-208.75051436,0.000129,2]
[323449445,1713993051156,-435.90618638,0.000129,2]
[323449446,1713993051166,-1351.6070552,0.000129,2]
[323449447,1713993051176,-1590.5113821,0.000129,2]
[323449448,1713993051185,-31267.70629032,0.000129,2]
[323449449,1713993051194,-205.78552149,0.000129,2]
[323449450,1713993051204,-2498.71570482,0.00012902,2]
[323449451,1713993051213,-2498.71570482,0.00012904,2]
[323449452,1713993051222,-2498.71570482,0.00012906,2]
[323449453,1713993051231,-2498.71570482,0.00012907,2]
[323449454,1713993051240,-2498.71570482,0.00012909,2]
[323449455,1713993051351,-2498.71570482,0.00012911,2]
[323449456,1713993051361,-2498.71570482,0.00012913,2]
[323449457,1713993051371,-1000.0,0.00012932,2]
[323449458,1713993051381,-8266.07,0.00012934,2]
[323449459,1713993051391,-271.06628097,0.0001295,2]
[323449460,1713993051402,-3323.96023733,0.0001295,2]
[323449461,1713993051412,-296.57,0.00012966,2]
[323449462,1713993051423,-1000.0,0.0001297,2]
[323449463,1713993051433,-1500.0,0.0001297,2]
[323449464,1713993051443,-500.0,0.0001297,2]
[323449465,1713993051454,-500.0,0.0001297,2]
[323449466,1713993051465,-3421.38449002,0.00012985,2]
[323449467,1713993051475,-2208.8948925,0.0001299,2]
[323449468,1713993051486,-24416.27633537,0.0001299,2]
[323449469,1713993051496,-4727.62770514,0.00012998,2]
[323449470,1713993051507,-7750.96230258,0.00012998,2]
[323449471,1713993051517,-359.18860075,0.00012998,2]
[323449472,1713993051528,-155.0,0.00012998,2]
[323449473,1713993051538,-269.546558,0.00012998,2]
[323449474,1713993051548,-455.78271799,0.00012998,2]
[323449475,1713993051558,-222.68410357,0.00012998,2]
[323449476,1713993051569,-871.69285419,0.00012998,2]
[323449477,1713993051579,-12058.37161419,0.00012999,2]
[323449478,1713993051590,-1056.0441035,0.00012999,3]
[323449479,1713993051601,-1056.0441035,0.00012999,3]
[323449480,1713993051611,-500.0,0.00012999,2]
[323449481,1713993051622,-3487.67,0.00012999,2]
[323449482,1713993051633,-500.0,0.00012999,2]
[323449483,1713993051649,-3669302.62141373,0.00013,2]
[323449484,1713993051660,-521.90737213,0.00013,2]
[323449485,1713993051669,-1124458.08114472,0.00013,2]
[323449486,1713993051915,-12872.88762665,0.00013,2]
[323449487,1713993051929,-438.29,0.00013,2]
[323449488,1713993052159,-500.0,0.0001123,2]
[323449489,1713993052169,-500.0,0.0001123,2]
[323449490,1713993052179,-500.0,0.00011504,2]
[323449491,1713993052188,-243.7,0.00011778,2]
[323449492,1713993052199,-1401.97880002,0.00013,2]
[323449493,1713993052213,-263.40563939,0.00013,2]
[323449494,1713993052224,-2758.93758457,0.00013,2]
[323449495,1713993052235,-642.35214,0.00013,2]
[323449496,1713993052250,-966.60273448,0.00013,2]
[323449497,1713993052319,-442511.75886799,0.00013,2]
[323449498,1713993052330,-1326786.17642728,0.00013,2]
[323449499,1713993052341,-649.88899727,0.00013,2]
[323449500,1713993052352,-654.02,0.00013,2]
[323449501,1713993052363,-2925.69016085,0.00013,2]
[323449502,1713993052378,-520.17011,0.00013,2]
[323449503,1713993052479,-317.98496299,0.00010251,2]
[323449504,1713993052489,-500.0,0.0001123,2]
[323449505,1713993052498,-500.0,0.00011504,2]
[323449506,1713993052507,-464.99,0.00011778,2]
[323449507,1713993052516,-640.1727484,0.00013,2]
[323449508,1713993052535,-660.87101,0.00013,2]
[323449509,1713993052546,-100203.87200002,0.00013,2]
[323449510,1713993052557,-100202.674041,0.00013,2]
[323449511,1713993052568,-90454.12495137,0.00013,2]
[323449512,1713993052580,-641.85,0.00013,2]
[323449513,1713993052592,-6254.70780033,0.00013,2]
[323449514,1713993052604,-738.57999998,0.00013,2]
[323449515,1713993725765,333.62,8.327e-05,2]
[323449523,1713994151109,-359.46553194,8.715e-05,2]
[323449524,1713994151131,-408.49724038,8.716e-05,2]
[323449525,1713994151151,-369.67882768,8.721e-05,2]
[323449526,1713994189788,316.93,8.233e-05,2]
[323449530,1713994231857,-168.07520837,8.721e-05,2]
[323449531,1713994231868,-3021.7237,9.95e-05,2]
[323449532,1713994231877,-1149.5658,9.95e-05,2]
[323449533,1713994231886,-150.0,0.00010049,2]
[323449534,1713994231894,-150.0,0.00010049,2]
[323449535,1713994231904,-2964.48603,0.0001005,2]
[323449536,1713994231923,-1765.3227016,0.0001005,2]
[323449537,1713994231932,-2210.41804143,0.00010087,2]
[323449538,1713994231942,-250.0,0.00010187,2]
[323449539,1713994231951,-182.07,0.00010214,2]
[323449540,1713994231960,-200.0,0.00010244,2]
[323449541,1713994231970,-215.98518856,0.00010251,4]
[323449542,1713994231982,-1000.0,0.00010278,2]
[323449543,1713994231992,-499.99,0.00010278,2]
[323449544,1713994232001,-2210.41804144,0.00010372,2]
[323449545,1713994232010,-191.2,0.00010472,2]
[323449546,1713994232021,-245.72,0.00010472,2]
[323449547,1713994232031,-2868.17622697,0.00010472,2]
[323449548,1713994232054,-442.695,0.00010472,2]
[323449549,1713994232070,-867.67329241,0.00010472,2]
[323449550,1713994232089,-950.37307554,0.00010472,2]
[323449551,1713994232101,-319.50034176,0.00010472,2]
[323449552,1713994232112,-860.85972681,0.00010472,2]
[323449553,1713994232130,-695.72180476,0.00010472,2]
[323449604,1713994237606,-16895.00053175,0.00010472,2]
[323449606,1713994237615,-316.93,0.00010497,2]
[323449608,1713994237626,-665.36,0.00010959,2]
[323449610,1713994237635,-795.10262235,0.00011,2]
[323449612,1713994237645,-658.17837032,0.00011,2]
[323449614,1713994237654,-15880.0044,0.00011031,2]
[323449616,1713994237664,-13928.0812,0.00011031,2]
[323449618,1713994237673,-4585.9986,0.00011031,2]
[323449621,1713994237682,-1000.0,0.00011031,2]
[323449623,1713994237692,-2010.499,0.00011031,2]
[323449625,1713994237702,-732.70487158,0.00011115,2]
[323449627,1713994237711,-3421.38449002,0.00011118,2]
[323449629,1713994237721,-212.16556576,0.00011128,2]
[323449631,1713994237730,-273.43631284,0.00011128,2]
[323449633,1713994237739,-268.56451875,0.00011128,2]
[323449635,1713994237749,-871.69285419,0.00011129,2]
[323449637,1713994237758,-155.0,0.00011129,2]
[323449639,1713994237767,-7750.96230258,0.00011129,2]
[323449641,1713994237776,-222.68410357,0.00011129,2]
[323449643,1713994237785,-304.30834737,0.00011129,2]
[323449645,1713994237793,-308.20153492,0.00011129,2]
[323449647,1713994237803,-1667.16113497,0.00011129,2]
[323449649,1713994237812,-214.02042905,0.00011129,2]
[323449651,1713994237821,-209.85536267,0.00011129,2]
[323449653,1713994237830,-1000.0,0.00011129,2]
[323449654,1713994237839,-1292.5088923,0.0001113,2]
[323449656,1713994237849,-500.0,0.0001113,2]
[323449658,1713994237858,-500.0,0.0001113,2]
[323449660,1713994237868,-500.0,0.0001113,2]
[323449662,1713994237879,-500.0,0.0001113,2]
[323449664,1713994237888,-500.0,0.0001113,2]
[323449666,1713994237899,-500.0,0.0001113,2]
[323449668,1713994237910,-500.0,0.0001113,2]
[323449670,1713994237920,-500.0,0.0001113,2]
[323449672,1713994237930,-150.0,0.0001113,2]
[323449674,1713994237939,-500.0,0.0001113,2]
[323449676,1713994237948,-500.0,0.0001113,2]
[323449678,1713994237958,-500.0,0.0001113,2]
[323449680,1713994237967,-500.0,0.0001113,2]
[323449682,1713994237982,-500.0,0.0001113,2]
[323449683,1713994237992,-500.0,0.0001113,2]
[323449684,1713994238002,-500.0,0.0001113,2]
[323449685,1713994238011,-500.0,0.0001113,2]
[323449686,1713994238021,-500.0,0.0001113,2]
[323449687,1713994238030,-500.0,0.0001113,2]
[323449688,1713994238040,-500.0,0.0001113,2]
[323449689,1713994238049,-500.0,0.0001113,2]
[323449690,1713994238059,-500.0,0.0001113,2]
[323449691,1713994238069,-596.53,0.0001113,2]
[323449692,1713994238080,-536.02,0.0001113,2]
[323449693,1713994238090,-500.0,0.0001113,2]
[323449694,1713994238099,-500.0,0.0001113,2]
[323449695,1713994238108,-500.0,0.0001113,2]
[323449696,1713994238117,-6720.95,0.0001113,2]
[323449697,1713994238128,-679.14,0.0001113,2]
[323449698,1713994238138,-500.0,0.0001113,2]
[323449699,1713994238146,-500.0,0.0001113,2]
[323449700,1713994238156,-500.0,0.0001113,2]
[323449701,1713994238166,-690.97,0.0001113,2]
[323449702,1713994238175,-500.0,0.0001113,2]
[323449703,1713994238184,-500.0,0.0001113,2]
[323449704,1713994238194,-500.0,0.0001113,2]
[323449705,1713994238202,-576.26,0.0001113,2]
[323449706,1713994238211,-500.0,0.0001113,2]
[323449707,1713994238221,-639.53,0.0001113,2]
[323449708,1713994238232,-667.03,0.0001113,2]
[323449709,1713994238241,-500.0,0.0001113,2]
[323449710,1713994238251,-500.0,0.0001113,2]
[323449711,1713994238261,-540.46,0.0001113,2]
[323449712,1713994238269,-500.0,0.0001113,2]
[323449713,1713994238278,-500.0,0.0001113,2]
[323449714,1713994238288,-500.0,0.0001113,2]
[323449715,1713994238297,-820.55,0.0001113,2]
[323449716,1713994238306,-500.0,0.0001113,2]
[323449717,1713994238315,-890.33,0.0001113,2]
[323449718,1713994238323,-500.0,0.0001113,2]
[323449719,1713994238333,-500.0,0.0001113,2]
[323449720,1713994238342,-599.08,0.0001113,2]
[323449721,1713994238351,-668.02,0.0001113,2]
[323449722,1713994238360,-734.15,0.0001113,2]
[323449723,1713994238369,-500.0,0.0001113,2]
[323449724,1713994238378,-500.0,0.0001113,2]
[323449725,1713994238387,-2942.49,0.0001113,2]
[323449726,1713994238397,-2992.64,0.0001113,2]
[323449727,1713994238406,-742.71,0.0001113,2]
[323449728,1713994238415,-2765.33,0.0001113,2]
[323449729,1713994238425,-500.0,0.0001113,2]
[323449730,1713994238434,-692.73,0.0001113,2]
[323449731,1713994238443,-500.0,0.0001113,2]
[323449732,1713994238452,-29806.57,0.0001113,2]
[323449733,1713994238461,-544.34,0.0001113,2]
[323449734,1713994238470,-500.0,0.0001113,2]
[323449735,1713994238479,-500.0,0.0001113,2]
[323449736,1713994238488,-500.0,0.0001113,2]
[323449737,1713994238497,-500.0,0.0001113,2]
[323449738,1713994238506,-500.0,0.0001113,2]
[323449739,1713994238515,-500.0,0.0001113,2]
[323449740,1713994238525,-500.0,0.0001113,2]
[323449741,1713994238534,-500.0,0.0001113,2]
[323449742,1713994238543,-500.0,0.0001113,2]
[323449743,1713994238551,-500.0,0.0001113,2]
[323449744,1713994238561,-507.2,0.0001113,2]
[323449745,1713994238570,-500.0,0.0001113,2]
[323449746,1713994238579,-500.0,0.0001113,2]
[323449747,1713994238588,-772.57,0.0001113,2]
[323449748,1713994238597,-589.27,0.0001113,2]
[323449749,1713994238607,-500.0,0.0001113,2]
[323449750,1713994238616,-500.0,0.0001113,2]
[323449751,1713994238625,-500.0,0.0001113,2]
[323449752,1713994238634,-558.04,0.0001113,2]
[323449753,1713994238644,-500.0,0.0001113,2]
[323449754,1713994238653,-500.0,0.0001113,2]
[323449755,1713994238662,-500.0,0.0001113,2]
[323449756,1713994238671,-500.0,0.0001113,2]
[323449757,1713994238681,-500.0,0.0001113,2]
[323449758,1713994238690,-500.0,0.0001113,2]
[323449759,1713994238700,-500.0,0.0001113,2]
[323449760,1713994238710,-761.06,0.0001113,2]
[323449761,1713994238719,-500.0,0.0001113,2]
[323449762,1713994238728,-500.0,0.0001113,2]
[323449763,1713994238738,-5231.51,0.0001113,2]
[323449764,1713994238747,-500.0,0.0001113,2]
[323449765,1713994238756,-500.0,0.0001113,2]
[323449766,1713994238765,-762.83,0.0001113,2]
[323449767,1713994238774,-8042.82,0.0001113,2]
[323449768,1713994238784,-500.0,0.0001113,2]
[323449769,1713994238793,-500.0,0.0001113,2]
[323449770,1713994238802,-500.0,0.0001113,2]
[323449771,1713994238811,-500.0,0.0001113,2]
[323449772,1713994238821,-500.0,0.0001113,2]
[323449773,1713994238831,-797.66,0.0001113,2]
[323449774,1713994238840,-500.0,0.0001113,2]
[323449775,1713994238850,-874.98,0.0001113,2]
[323449776,1713994238859,-500.0,0.0001113,2]
[323449777,1713994238868,-2093.75,0.0001113,2]
[323449778,1713994238879,-588.0,0.0001113,2]
[323449779,1713994238888,-566.01,0.0001113,2]
[323449780,1713994238898,-500.0,0.0001113,2]
[323449781,1713994238907,-500.0,0.0001113,2]
[323449782,1713994238917,-500.0,0.0001113,2]
[323449783,1713994238926,-500.0,0.0001113,2]
[323449784,1713994238935,-1295.55,0.0001113,2]
[323449785,1713994238945,-500.0,0.0001113,2]
[323449786,1713994238955,-805.63,0.0001113,2]
[323449787,1713994238964,-500.0,0.0001113,2]
[323449788,1713994238981,-744.72,0.0001113,2]
[323449789,1713994238991,-1001.09,0.0001113,2]
[323449790,1713994239001,-762.96,0.0001113,2]
[323449791,1713994239011,-500.0,0.0001113,2]
[323449792,1713994239022,-500.0,0.0001113,2]
[323449793,1713994239031,-500.0,0.0001113,2]
[323449794,1713994239042,-500.0,0.0001113,2]
[323449795,1713994239054,-500.0,0.0001113,2]
[323449796,1713994239063,-2375.22,0.0001113,2]
[323449797,1713994239072,-681.19,0.0001113,2]
[323449798,1713994239082,-500.0,0.0001113,2]
[323449799,1713994239092,-500.0,0.0001113,2]
[323449800,1713994239101,-1008.99,0.0001113,2]
[323449801,1713994239114,-739.77,0.0001113,2]
[323449802,1713994239124,-780.92,0.0001113,2]
[323449803,1713994239134,-500.0,0.0001113,2]
[323449804,1713994239143,-500.0,0.0001113,2]
[323449805,1713994239152,-500.0,0.0001113,2]
[323449806,1713994239162,-500.0,0.0001113,2]
[323449807,1713994239174,-500.0,0.0001113,2]
[323449808,1713994239183,-500.0,0.0001113,2]
[323449809,1713994239192,-500.0,0.0001113,2]
[323449810,1713994239202,-500.0,0.0001113,2]
[323449811,1713994239211,-500.0,0.0001113,2]
[323449812,1713994239220,-500.0,0.0001113,2]
[323449813,1713994239230,-500.0,0.0001113,2]
[323449814,1713994239240,-500.0,0.0001113,2]
[323449815,1713994239250,-552.8,0.0001113,2]
[323449816,1713994239259,-500.0,0.0001113,2]
[323449817,1713994239269,-866.8,0.0001113,2]
[323449818,1713994239279,-500.0,0.0001113,2]
[323449819,1713994239289,-500.0,0.0001113,2]
[323449820,1713994239299,-588.89,0.0001113,2]
[323449821,1713994239308,-500.0,0.0001113,2]
[323449822,1713994239318,-527.01,0.0001113,2]
[323449823,1713994239327,-366.9127,0.0001113,2]
[323449824,1713994239336,-4322.3739,0.00011131,2]
[323449825,1713994239345,-210017.0881,0.00011131,2]
[323449826,1713994239354,-667.0206,0.00011131,2]
[323449828,1713994239364,-1480.24580625,0.00011229,2]
[323449830,1713994239374,-500.0,0.0001123,2]
[323449832,1713994239383,-500.0,0.0001123,2]
[323449834,1713994239393,-500.0,0.0001123,2]
[323449835,1713994239403,-517.5,0.0001123,2]
[323449837,1713994239413,-500.0,0.0001123,2]
[323449839,1713994239423,-500.0,0.0001123,2]
[323449841,1713994239433,-500.0,0.0001123,2]
[323449843,1713994239442,-500.0,0.0001123,2]
[323449845,1713994239452,-500.0,0.0001123,2]
[323449847,1713994239461,-500.0,0.0001123,2]
[323449850,1713994239470,-500.0,0.0001123,2]
[323449853,1713994239480,-500.0,0.0001123,2]
[323449856,1713994239489,-490.32205634,0.0001123,2]
[323449859,1713994239500,-500.0,0.0001123,2]
[323449898,1713994239729,-500.0,0.0001123,2]
[323449900,1713994239739,-500.0,0.0001123,2]
[323449902,1713994239749,-500.0,0.0001123,2]
[323449904,1713994239759,-500.0,0.00011231,2]
[323449906,1713994239768,-500.0,0.00011231,2]
[323449908,1713994239777,-500.0,0.00011231,2]
[323449910,1713994239787,-500.0,0.00011231,2]
[323449912,1713994239796,-500.0,0.00011231,2]
[323449914,1713994239806,-500.0,0.00011231,2]
[323449916,1713994239815,-500.0,0.00011231,2]
[323449918,1713994239824,-500.0,0.00011231,2]
[323449919,1713994239834,-500.61237865,0.00011231,2]
[323449920,1713994239844,-500.0,0.00011404,2]
[323449921,1713994239853,-500.0,0.00011404,2]
[323449922,1713994239863,-500.0,0.00011404,2]
[323449923,1713994239874,-500.0,0.00011404,2]
[323449924,1713994239884,-500.0,0.00011404,2]
[323449925,1713994239894,-500.0,0.00011404,2]
[323449926,1713994239904,-150.0,0.00011404,2]
[323449927,1713994239913,-500.0,0.00011404,2]
[323449928,1713994239923,-500.0,0.00011404,2]
[323449929,1713994239933,-500.0,0.00011404,2]
[323449930,1713994239943,-500.0,0.00011404,2]
[323449931,1713994239952,-500.0,0.00011404,2]
[323449932,1713994239962,-500.0,0.00011404,2]
[323449933,1713994239971,-500.0,0.00011404,2]
[323449934,1713994239985,-500.0,0.00011404,2]
[323449935,1713994239995,-500.0,0.00011404,2]
[323449936,1713994240004,-500.0,0.00011404,2]
[323449937,1713994240014,-500.0,0.00011404,2]
[323449938,1713994240023,-500.0,0.00011404,2]
[323449939,1713994240033,-500.0,0.00011404,2]
[323449940,1713994240043,-596.53,0.00011404,2]
[323449941,1713994240053,-500.0,0.00011404,2]
[323449942,1713994240063,-500.0,0.00011404,2]
[323449943,1713994240072,-6720.95,0.00011404,2]
[323449944,1713994240082,-679.14,0.00011404,2]
[323449945,1713994240091,-500.0,0.00011404,2]
[323449946,1713994240100,-500.0,0.00011404,2]
[323449947,1713994240110,-500.0,0.00011404,2]
[323449948,1713994240119,-690.97,0.00011404,2]